Cogmind - Beta 9.3 @@@ ROGUE MODE // 2019.12.18 @ 23:06:23 // Winter2019/RPGLIKE Player: Omewes Result: Destroyed by G-47 Trooper with Particle Gun Performance ------------- Evolutions (2) 1000 Regions Visited (7) 1400 Robots Destroyed (21) 105 Value Destroyed (870) 870 Prototype IDs (6) 120 Alien Tech Used (0) 0 Bonus (692) 692 TOTAL SCORE: 4187 Bonus ------- High Alert Combat Kills 4 Follower Combat Kills 21 Entered Garrisons 200 Used RIF Installer 500 Friendly Fire -33 Cogmind --------- Core Integrity 0/600 Matter 300/300 Energy 280/280 System Corruption 0% Temperature Cool (9) Movement Flying (37) Location -8/Materials Parts ------- > --- POWER (1) -------- Cooled Ion Engine > --- PROPULSION (3) --- Flight Unit Cesium-ion Thruster > --- UTILITY (3) ------ Improved Signal Interpreter Advanced Terrain Scanner Hacking Suite > --- WEAPON (2) ------- Datajack Great Axe > --- INVENTORY (2) ---- Melee Analysis Suite Relay Coupler [Grunt] (62) Peak State ------------ > --- POWER ------------ Light Deuterium Engine > --- PROPULSION ------- Flight Unit Cesium-ion Thruster > --- UTILITY ---------- Improved Signal Interpreter Advanced Terrain Scanner Hacking Suite > --- WEAPON ----------- Datajack Great Axe > --- INVENTORY -------- Melee Analysis Suite Relay Coupler [Grunt] [Rating: 20] Favorites ----------- Power Light Deuterium Engine Engine Light Deuterium Engine Propulsion Flight Unit Wheel Wheel Hover Unit Combat Airjet Flight Unit Flight Unit Utility Improved Terrain Scanner Device Improved Terrain Scanner Processor Improved Signal Interpreter Hackware Hacking Suite Weapon Axe Energy Gun Medium Laser Slashing Weapon Axe Special Melee Weapon Datajack Build | -11 -10 -10 -9 -9 -8 -8 -8 ------- Run | Scr Mat Min Mat Min Mat Gar Mat Slots Evolved 5 | 2 . . 1 1 . 1 . Power . | . . . . . . . . Propulsion 2 | 1 . . . 1 . . . Utility 2 | 1 . . 1 . . . . Weapon 1 | . . . . . . 1 . Parts Attached 31 | 5 5 3 2 4 2 5 5 Power 4 | 1 . 1 . . . . 2 Engine 4 | 1 . 1 . . . . 2 Core . | . . . . . . . . Reactor . | . . . . . . . . Propulsion 12 | 2 3 2 . 3 1 1 . Treads . | . . . . . . . . Leg . | . . . . . . . . Wheel 2 | 2 . . . . . . . Hover 1 | . . 1 . . . . . Flight 9 | . 3 1 . 3 1 1 . Utility 5 | 1 1 . 1 . . 1 1 Device 2 | 1 . . . . . . 1 Storage . | . . . . . . . . Processor 2 | . 1 . . . . 1 . Hackware 1 | . . . 1 . . . . Protection . | . . . . . . . . Artifact . | . . . . . . . . Weapon 10 | 1 1 . 1 1 1 3 2 Energy Gun 6 | 1 1 . 1 1 . 2 . Energy Cannon . | . . . . . . . . Ballistic Gun . | . . . . . . . . Ballistic Cannon . | . . . . . . . . Launcher . | . . . . . . . . Special Weapon . | . . . . . . . . Impact Weapon . | . . . . . . . . Slashing Weapon 3 | . . . . . 1 1 1 Piercing Weapon . | . . . . . . . . Special Melee Weapon 1 | . . . . . . . 1 Unidentified Prototypes 2 | . . . 1 . . . 1 Parts Lost 3 | . . 1 . . . 2 . Power . | . . . . . . . . Propulsion 2 | . . . . . . 2 . Utility . | . . . . . . . . Weapon 1 | . . 1 . . . . . Highest Loss Streak 1 | . . 1 . . . 1 . Average Slot Usage (%) 89 | . 85 98 86 91 100 91 84 Engine 12 | . 16 16 14 12 12 11 11 Wheel 3 | . 15 . . . . . . Flight 27 | . 17 33 28 31 37 33 22 Device 12 | . 16 16 14 12 12 11 11 Processor 10 | . 2 16 14 12 12 11 11 Hackware 8 | . . . 14 12 12 11 11 Energy Gun 5 | . 16 14 1 7 2 . . Slashing Weapon 6 | . . . . . 9 11 11 Special Melee Weapon 1 | . . . . . . . 7 Naked Turns . | . . . . . . . . Heaviest Build 14 | 8 8 8 9 9 9 9 14 Greatest Support 26 | 26 26 8 8 12 24 24 20 Greatest Overweight (x) 2 | . . 2 1 1 . . . Average Overweight (x) . | . . . . . . . . Largest Inventory Capacity 2 | 1 1 1 1 1 2 2 2 Average Capacity 1 | . 1 1 1 1 1 2 2 Most Carried 2 | 1 1 1 1 1 2 2 2 Average Carried 1 | . . 1 . . 1 1 2 Final Capacity 2 | 1 1 1 1 1 2 2 2 Final Carried 2 | 1 1 1 1 1 2 2 2 Class Distribution -------------------- 66% | Hacker-Scout 20% | Mutant 12% | Scout Dominant Class ---------------- Mutant | -10/Materials Scout | -10/Mines Hacker-Scout | -9/Materials Hacker-Scout | -9/Mines Hacker-Scout | -8/Materials Hacker-Scout | -8/Garrison Hacker-Scout | -8/Materials Resources | -11 -10 -10 -9 -9 -8 -8 -8 ----------- Run | Scr Mat Min Mat Min Mat Gar Mat Matter Collected 505 | 250 33 47 . 60 . 60 55 Remotely . | . . . . . . . . Salvage Created 676 | 107 45 16 . 18 . 226 264 Parts 46 | 3 10 . . 1 . 15 17 Haulers Intercepted 4 | . . . . . . . 4 Recyclers Shooed . | . . . . . . . . Parts Field Recycled . | . . . . . . . . Retrieved Matter . | . . . . . . . . Parts Self-Destructed . | . . . . . . . . Prevented . | . . . . . . . . Kills | -11 -10 -10 -9 -9 -8 -8 -8 ------- Run | Scr Mat Min Mat Min Mat Gar Mat Combat Hostiles Destroyed 9 | . 3 . . 1 . 5 . Melee 5 | . . . . . . 5 . Guns 4 | . 3 . . 1 . . . Classes Destroyed 9 | 2 3 . . . . 2 2 Worker 2 | . . . . . . . 2 Tunneler 2 | 1 . . . . . . 1 Hauler 4 | . . . . . . . 4 Recycler 1 | 1 . . . . . . . Operator 1 | . 1 . . . . . . Watcher 2 | . 1 . . . . 1 . Swarmer 6 | . 3 . . 1 . 2 . Grunt 2 | . . . . . . 2 . Sentry 1 | . . . . . . 1 . Best Kill Streak 3 | 2 3 . . 1 . 2 2 Combat Bots Only 3 | . 3 . . 1 . 2 . Max Kills in Single Turn 1 | 1 1 . . 1 . 1 1 Gunslinging . | . . . . . . . . Exploded . | . . . . . . . . Melee 1 | . . . . . . 1 . Uniques/NPCs Destroyed . | . . . . . . . . Combat | -11 -10 -10 -9 -9 -8 -8 -8 -------- Run | Scr Mat Min Mat Min Mat Gar Mat Damage Taken 1089 | . 138 161 83 28 41 546 92 Core 907 | . 104 132 80 25 32 459 75 Absorbed by Shields . | . . . . . . . . Redirected to Core 559 | . 98 56 11 12 32 290 60 Core Remaining (%) 83 | 100 . 84 . 66 . . . Volleys Fired 51 | 4 27 14 . 2 . 4 . Largest 1 | 1 1 1 . 1 . 1 . Hottest 65 | 50 50 50 . 45 . 65 . Shots Fired 51 | 4 27 14 . 2 . 4 . Gun 51 | 4 27 14 . 2 . 4 . Cannon . | . . . . . . . . Launcher . | . . . . . . . . Special . | . . . . . . . . Kinetic . | . . . . . . . . Thermal 49 | 4 27 14 . . . 4 . Explosive . | . . . . . . . . Electromagnetic 2 | . . . . 2 . . . Robot Hit Streak 5 | 4 5 5 . 1 . . . Robot Miss Streak 5 | . 2 3 . 5 . . . Penetration Max . | . . . . . . . . Secondary Targets . | . . . . . . . . Shots Hit Robots 56 | 4 16 8 . 1 1 14 12 Core Hits 26 | 3 6 2 . 1 . 7 7 Critical Hits 1 | . . . . . . 1 . Critical Kills 1 | . . . . . . 1 . Critical Parts Destroyed . | . . . . . . . . Melee Attacks 90 | . . . . . 15 40 35 Impact . | . . . . . . . . Slashing 90 | . . . . . 15 40 35 Piercing . | . . . . . . . . Sneak Attacks 9 | . . . . . 1 . 8 Combat Hostiles . | . . . . . . . . Follow-up Attacks . | . . . . . . . . Damage Inflicted 2075 | 50 226 100 . 10 117 492 1080 Guns 386 | 50 226 100 . 10 . . . Cannons . | . . . . . . . . Explosions . | . . . . . . . . Melee 1689 | . . . . . 117 492 1080 Ramming . | . . . . . . . . Kinetic . | . . . . . . . . Thermal 376 | 50 226 100 . . . . . Explosive . | . . . . . . . . Electromagnetic 10 | . . . . 10 . . . Impact . | . . . . . . . . Slashing 1689 | . . . . . 117 492 1080 Piercing . | . . . . . . . . Highest Corruption . | . . . . . . . . Average Corruption . | . . . . . . . . Corruption Purged . | . . . . . . . . Overload Shots . | . . . . . . . . Overflow Damage 222 | . . . . . 82 . 140 Projectiles . | . . . . . . . . Explosions . | . . . . . . . . Melee 222 | . . . . . 82 . 140 Knockbacks . | . . . . . . . . Impact . | . . . . . . . . Kinetic . | . . . . . . . . Secondary . | . . . . . . . . Self-Inflicted Damage . | . . . . . . . . Shots . | . . . . . . . . Rammed . | . . . . . . . . Targets Rammed . | . . . . . . . . Kicked . | . . . . . . . . Crushed . | . . . . . . . . Highest Temperature 210 | 20 210 98 . 29 2 128 4 Average Temperature 59 | 10 85 38 . 17 2 52 4 Received Heat Transfer 243 | . . . 33 9 18 138 45 Siege Activations . | . . . . . . . . Robots Corrupted . | . . . . . . . . Combat Hostiles . | . . . . . . . . Parts Fried . | . . . . . . . . Impact Corruptions . | . . . . . . . . Robots Melted . | . . . . . . . . Combat Hostiles . | . . . . . . . . Parts Melted 1 | 1 . . . . . . . Heat Transferred 1110 | 148 666 296 . . . . . Parts Sabotaged . | . . . . . . . . Parts Stolen . | . . . . . . . . Parts Stripped . | . . . . . . . . Power Chain Reactions . | . . . . . . . . Missiles Intercepted . | . . . . . . . . Alert | -11 -10 -10 -9 -9 -8 -8 -8 ------- Run | Scr Mat Min Mat Min Mat Gar Mat Peak Influence 513 | 10 157 76 80 135 131 513 268 Average Influence 157 | 4 73 63 48 85 96 302 194 Maximum Alert Level 2 | . . . . . . 2 1 Low Security (%) 71 | 100 100 100 100 100 100 34 51 Level 1 17 | . . . . . . 26 48 Level 2 10 | . . . . . . 38 . Level 3 . | . . . . . . . . Level 4 . | . . . . . . . . Level 5 . | . . . . . . . . High Security . | . . . . . . . . Max Security . | . . . . . . . . Squads Dispatched 6 | . 1 . . . 2 . 3 Investigation 3 | . 1 . . . 1 . 1 Extermination . | . . . . . . . . Reinforcement 3 | . . . . . 1 . 2 Assault . | . . . . . . . . Garrison . | . . . . . . . . Intercept . | . . . . . . . . Construction Impeded . | . . . . . . . . Haulers Reinforced . | . . . . . . . . Stealth | -11 -10 -10 -9 -9 -8 -8 -8 --------- Run | Scr Mat Min Mat Min Mat Gar Mat Distress Signals 6 | . . . 3 . . . 3 Communications Jammed . | . . . . . . . . Distress Signals . | . . . . . . . . Times Spotted 84 | . 12 8 9 4 7 22 22 Peak Tracking Total 12 | . 3 8 9 4 9 9 12 Tactical Retreats 12 | . 2 . 3 . . 3 4 Traps | -11 -10 -10 -9 -9 -8 -8 -8 ------- Run | Scr Mat Min Mat Min Mat Gar Mat Traps Triggered 6 | . 2 . . . 1 3 . Indirectly . | . . . . . . . . Trap Hack Attempts . | . . . . . . . . Triggered . | . . . . . . . . Disarmed . | . . . . . . . . Reprogrammed . | . . . . . . . . Reused . | . . . . . . . . Traps Extracted . | . . . . . . . . Installed . | . . . . . . . . Triggered . | . . . . . . . . Machines | -11 -10 -10 -9 -9 -8 -8 -8 ---------- Run | Scr Mat Min Mat Min Mat Gar Mat Machines Disabled 4 | . . . . . . 4 . Max in Single Turn 2 | . . . . . . 2 . Garrison Relay 2 | . . . . . . 2 . Phase Generator 1 | . . . . . . 1 . Machines Sabotaged . | . . . . . . . . Garrisons Compromised . | . . . . . . . . Overloaded Fab Kills . | . . . . . . . . Fab Network Shutdowns . | . . . . . . . . Hacking | -11 -10 -10 -9 -9 -8 -8 -8 --------- Run | Scr Mat Min Mat Min Mat Gar Mat Machines Accessed 16 | . 3 . 2 . 5 . 6 Terminals 15 | . 3 . 2 . 4 . 6 Fabricators . | . . . . . . . . Repair Stations . | . . . . . . . . Recycling Units . | . . . . . . . . Scanalyzers . | . . . . . . . . Garrison Access 1 | . . . . . 1 . . Total Hacks 64 | . 11 . 10 . 20 . 23 Successful 47 | . 7 . 8 . 14 . 18 Failed 17 | . 4 . 2 . 6 . 5 Catastrophic 2 | . . . . . 1 . 1 Database Lockouts . | . . . . . . . . Manual 50 | . 6 . 9 . 15 . 20 Terminals 63 | . 11 . 10 . 19 . 23 Fabricators . | . . . . . . . . Repair Stations . | . . . . . . . . Recycling Units . | . . . . . . . . Scanalyzers . | . . . . . . . . Garrison Access 1 | . . . . . 1 . . Terminal Hacks 29 | . 5 . 4 . 9 . 11 Robot Analysis 1 | . 1 . . . . . . Prototype ID Bank 2 | . . . . . 1 . 1 Level Access Points 1 | . . . . . 1 . . Branch Access Points 6 | . 2 . 1 . 2 . 1 Terminal Index 3 | . . . 1 . 1 . 1 Garrison Index 1 | . . . . . 1 . . Alert Level 1 | . . . . . 1 . . Unreport Threat 1 | . . . . . . . 1 Locate Traps 1 | . . . . . . . 1 Dispatch Records 1 | . . . . . . . 1 Recall Investigation 1 | . . . . . . . 1 Recall Reinforcements 1 | . . . . . . . 1 Hauler Manifests 1 | . . . . . . . 1 Registered Components 1 | . . . . . . . 1 Zone Layout 7 | . 2 . 2 . 2 . 1 Fabricator Hacks . | . . . . . . . . Repair Station Hacks . | . . . . . . . . Recycling Unit Hacks . | . . . . . . . . Scanalyzer . | . . . . . . . . Garrison Access Hacks 1 | . . . . . 1 . . Unlock Access 1 | . . . . . 1 . . Unauthorized Hacks 38 | . 5 . 8 . 10 . 15 Terminals 17 | . 2 . 4 . 4 . 7 Track 6 | . . . 1 . 2 . 3 Assimilate 3 | . 1 . . . . . 2 Botnet 4 | . . . 2 . 1 . 1 Operators 4 | . 1 . 1 . 1 . 1 Fabricators . | . . . . . . . . Repair Stations . | . . . . . . . . Recycling Units . | . . . . . . . . Scanalyzers . | . . . . . . . . Garrison Access . | . . . . . . . . Data Cores Recovered . | . . . . . . . . Used . | . . . . . . . . Hacking Detections 13 | . . . 2 . 5 . 6 Full Trace Events 1 | . . . . . . . 1 Feedback Events . | . . . . . . . . Feedback Blocked . | . . . . . . . . Robot Schematics Acquired . | . . . . . . . . Robots Built . | . . . . . . . . Matter . | . . . . . . . . Time . | . . . . . . . . Total Robot Build Rating . | . . . . . . . . Part Schematics Acquired . | . . . . . . . . Parts Built . | . . . . . . . . Matter . | . . . . . . . . Time . | . . . . . . . . Total Part Build Rating . | . . . . . . . . Parts Repaired . | . . . . . . . . Time . | . . . . . . . . Parts Recycled . | . . . . . . . . Recycled Matter . | . . . . . . . . Retrieved Matter . | . . . . . . . . Retrieved Components . | . . . . . . . . Parts Scanalyzed . | . . . . . . . . Part Schematics Acquired . | . . . . . . . . Parts Damaged . | . . . . . . . . Bothacking | -11 -10 -10 -9 -9 -8 -8 -8 ------------ Run | Scr Mat Min Mat Min Mat Gar Mat Used RIF Installer 1 | . . . . . . 1 . Robots Hacked . | . . . . . . . . Non-combat . | . . . . . . . . Combat . | . . . . . . . . Robot Hacks Applied . | . . . . . . . . Relay Couplers Released 4 | . . . . . . 4 . Machine Destruction 4 | . . . . . . 4 . Robots Rewired . | . . . . . . . . Allies Hacked . | . . . . . . . . Hacks Repelled . | . . . . . . . . Allies | -11 -10 -10 -9 -9 -8 -8 -8 -------- Run | Scr Mat Min Mat Min Mat Gar Mat Total Allies 5 | . 1 . . 3 . . 1 Largest Group 3 | . . . . 3 . . 1 Highest-Rated Group 40 | . . . . 40 . . 10 Highest-Rated Ally 16 | . . . . 16 . . 10 Total Orders . | . . . . . . . . Ally Attacks 5 | . . . . 5 . . . Total Damage 78 | . . . . 78 . . . Kills 3 | . . . . 3 . . . Allies Corrupted . | . . . . . . . . Allies Melted . | . . . . . . . . Intel | -11 -10 -10 -9 -9 -8 -8 -8 ------- Run | Scr Mat Min Mat Min Mat Gar Mat Robot Analysis Total 1 | . 1 . . . . . . Derelict Logs Recovered . | . . . . . . . . Drone Launches . | . . . . . . . . Drone Recoveries . | . . . . . . . . Exploration | -11 -10 -10 -9 -9 -8 -8 -8 ------------- Run | Scr Mat Min Mat Min Mat Gar Mat Turns Passed 1477 | 75 300 121 91 43 130 391 326 Spaces Moved 2204 | 66 418 224 211 82 181 472 550 Core 6 | 5 . 1 . . . . . Treads . | . . . . . . . . Legs . | . . . . . . . . Wheels 195 | 61 134 . . . . . . Hover . | . . . . . . . . Flight 2003 | . 284 223 211 82 181 472 550 Fastest Speed 34 | 50 37 37 37 34 34 34 37 Average Speed 41 | 86 52 37 41 36 34 34 37 Slowest Speed 150 | 90 90 150 117 117 34 37 37 Overloaded Moves . | . . . . . . . . Propulsion Burnouts . | . . . . . . . . Robots Hopped 14 | . 2 4 4 . 1 1 2 Cave-ins Triggered 1 | . . . . . . 1 . Exploration Rate (%) 37 | 4 58 50 34 17 19 76 44 Regions Visited 7 Branch Regions 2 Pre-discovered Areas 1 | . . 1 . . . . . Known Exits Taken 5 | . 1 1 1 1 1 . . Unknown Exits Taken 1 | 1 . . . . . . . Scrap Searched 1 | . . . . 1 . . . Spaces Dug 43 | . . . . . 12 13 18 Terrain Destroyed 131 | . . . . . 12 101 18 Melee 43 | . . . . . 12 13 18 Projectile . | . . . . . . . . AOE 88 | . . . . . . 88 . Actions | -11 -10 -10 -9 -9 -8 -8 -8 --------- Run | Scr Mat Min Mat Min Mat Gar Mat Total 2544 | 77 468 242 209 92 222 623 611 Wait 131 | . 10 . . 4 23 77 17 Move 2169 | 65 413 215 202 81 179 468 546 Hop 14 | . 2 4 4 . 1 1 2 Pick Up 8 | 2 2 . . . . 3 1 Fast Attach 16 | 5 4 2 1 1 1 . 2 Attach 3 | . . . 1 1 . 1 . Detach 2 | . . . 1 . 1 . . Swap 12 | . 1 1 . 2 1 4 3 Drop 18 | 1 5 3 . 1 1 2 5 Fire 51 | 4 27 14 . 2 . 4 . Melee 90 | . . . . . 15 40 35 Ram . | . . . . . . . . Kick . | . . . . . . . . Crush . | . . . . . . . . Escape Stasis 16 | . . . . . . 16 . Rewire . | . . . . . . . . Trap . | . . . . . . . . Miscellaneous 14 | . 4 3 . . . 7 . Route ------- -11/Scrapyard -10/Materials (discovered 2 exits: *Min x2) -10/Mines -9/Materials (discovered 2 exits: *Min x2) -9/Mines -8/Materials (discovered 4 exits: Fac x3 / Gar) -8/Garrison (discovered 3 exits: *Mat x3) -8/Materials (discovered 1 exit: Fac) History --------- Turn | Location | Event 3 | -11/Scrapyard | Upgraded with Propulsion slot (x1) 3 | -11/Scrapyard | Upgraded with Utility slot (x1) 3 | -11/Scrapyard | Discovered new exit (range 15) 76 | -11/Scrapyard | Entered Materials 88 | -10/Materials | Identified exit to Mines 302 | -10/Materials | Build established: Mutant 376 | -10/Materials | Entered Mines 386 | -10/Mines | Assembled infested the area 414 | -10/Mines | Met 8R-AWN 424 | -10/Mines | Learned location of Storage (-7) 493 | -10/Mines | Discovered new exit (range 12) 496 | -10/Mines | Identified exit to Materials 497 | -10/Mines | Entered Materials 499 | -9/Materials | Reached level 2 499 | -9/Materials | Upgraded with Utility slot (x1) 527 | -9/Materials | Identified exit to Mines 588 | -9/Materials | Entered Mines 590 | -9/Mines | Assisted by bots powering up and referring to "LRC-V3" 606 | -9/Mines | Reached level 3 608 | -9/Mines | Upgraded with Propulsion slot (x1) 629 | -9/Mines | Discovered new exit (range 8) 631 | -9/Mines | Identified exit to Materials 631 | -9/Mines | Entered Materials 633 | -8/Materials | Reached level 4 636 | -8/Materials | Identified exit to Factory 761 | -8/Materials | Identified exit to Garrison 761 | -8/Materials | Entered Garrison 804 | -8/Garrison | Build established: Hacker-Scout 828 | -8/Garrison | Triggered checkpoint 839 | -8/Garrison | Core integrity fell below 50% 896 | -8/Garrison | Phase Generator disabled 896 | -8/Garrison | Reached level 5 905 | -8/Garrison | Garrison Relay disabled 918 | -8/Garrison | Upgraded with Weapon slot (x1) 980 | -8/Garrison | Triggered checkpoint 984 | -8/Garrison | Garrison Relay disabled 1026 | -8/Garrison | Discovered new exit (range 10) 1029 | -8/Garrison | Identified exit to Materials 1047 | -8/Garrison | Crushed by falling debris 1050 | -8/Garrison | Triggered checkpoint 1078 | -8/Garrison | Triggered checkpoint 1084 | -8/Garrison | Spotted B-75 Beast 1087 | -8/Garrison | Discovered exit to Materials (range 6) 1128 | -8/Garrison | Core integrity fell below 20% 1146 | -8/Garrison | Discovered exit to Materials (range 5) 1150 | -8/Garrison | Installed Relay Interface Framework 1152 | -8/Garrison | Entered Materials 1436 | -8/Materials | Discovered exit to Factory (range 14) 1478 | -8/Materials | Destroyed by G-47 Trooper with Particle Gun Last Messages --------------- Retrieving dispatch records... Found 24 active squads: 10x Security 5x Surveillance 6x Patrol 2x Transport 1x Reinforcement >>Recall(Reinforcements) Establishing remote squad link... Recalled reinforcement squad OO8RS4AIPU. >>Trojan(Track) Trojan loaded successfully. Testing... Tracking enabled and active. 01439_ O-16 Technician uses terminal to summon reinforcements. 01439_ ALERT: Hostiles spotted, dispatching reinforcements to Terminal M007. 01439_ O-16 Technician locks terminal. 01439_ O-16 Technician cleans trojans from system. 01474_ K-01 Serf collects debris. 01476_ K-01 Serf destroyed. Map ----- +----------------------------------------------------+ | ????????????????????????????????? | | ????????????????????????????????? | | ????????????????????????????????? | | ????????????????????????????????? | | ????????????????????????????????? | | ????????????????????????????????? | | ??#?????#???????????????????????? | | ?#????????? ????????????????????? | | ?##?#?? ???????? ???Y???????????? | | ??#??#?? ????????? ?????????????? | | ????#???? ? ??? ?? ?????????????? | | ????## ? ???????????????????????? | | ?##???? ?? ??###???????????????? | | ???##???? ??????????????????????? | | ????## #g ???#???#????????????? | | # ? ? ? g? ?#???#?#???????????? | | # ?# ???? #????? ??#? "R?? ? | | ? ???# ? ? ? ? ? ??? ? " | | ? ?#??? ???? ""????"?# ????? | | # ? ? ### #?# ??""?"? ??? ? | | ? ? #??##Y###?????""" # ![ | | # ##??? ##??"""""?" ? ?!![ | | ??? ??##?? ##??""""""" # ? ! | | ? ? ?##### ###? # ?? | | #???###; k ###??#+#### ? | | ?####?##@ ##### ? ? | | ?##?#?## g ? ? ? | | #####??# =%* #####g ? #### | | #?###### Y #?### #######?## | | ##?##?##;#####?### uk#######?## | | ?###### ##?#?####? ####???### | | ######"####???#### r ####?##### | | # ############ ?######?### | | # """ # =! a ##########= | | # """ # = ########### | | # """ # k # # | | # + """" # # "" | | #[ # """" w# # "T | | # =# """" # # | | ####### g # # | | # # gl] # # | | # ! # ]] + #### | | # # g # # ] | | # + # # | | # # g"############ #| | | #! # # ### # | | # # #Y] ### # "" | | ####### # ### # "" | | #? ##?# # #####+#### "" | | ## #?## # ##### #### | +----------------------------------------------------+ Best States ------------- Heat Dissipation 25 Energy Generation 24 Energy Capacity 280 Matter Stores 300 Matter Capacity 300 Sight Range 16 Robot Scan Range 22 Terrain Scan Range 20 Terrain Scan Density 510 Evasion (%) 63 Offensive Hacking 20 Defensive Hacking 5 Item Schematics ----------------- None Robot Schematics ------------------ None Fabricated ------------ Nothing Alien Tech Used ----------------- None Achievements -------------- None Challenges ------------ None RPGLIKE | -11 -10 -10 -9 -9 -8 -8 -8 --------- Run | Scr Mat Min Mat Min Mat Gar Mat Levels Raised 4 | . . . 1 1 1 1 . XP Earned 10291 | 3000 455 500 1530 1029 1535 2102 140 XP Spent 8675 | 3000 . . 1375 1475 1585 1240 . Upgrades 32 | 12 . . 3 4 8 5 . Propulsion Slot 2 | 1 . . . 1 . . . Utility Slot 2 | 1 . . 1 . . . . Weapon Slot 1 | . . . . . . 1 . Energy Generation 2 | 2 . . . . . . . Mass Support 2 | . . . . . 2 . . Inventory Capacity 2 | 1 . . . . 1 . . Sensor Range 11 | 5 . . 1 3 2 . . Terrain Scan Density 5 | . . . . . 3 2 . Melee Accuracy 2 | . . . . . . 2 . Hack Attack % 2 | 1 . . 1 . . . . Hack Defense % 1 | 1 . . . . . . . Protomatter Created 80 | . 27 . . . . 53 . Integrity Restored 300 | . 81 60 . . . 159 . Core 300 | . 81 60 . . . 159 . Protomatter Decayed 56 | . . 56 . . . . . Game ------ Seed LinkedMetafieldTorch Manual? 0 Play Time 00:39:36 Cumulative 139.8 hours Start 2019.12.18 @ 22:15:58 End 2019.12.18 @ 23:06:23 Sessions 1 Manual Loads 0 Difficulty Rogue Special Mode Winter2019/RPGLIKE Game No. 127 Rogue 127 Adventurer 0 Explorer 0 Win Type - Total 5 Types 3/0/1/1/0/0/0 Lore% 67 Gallery% 74 Achievement% 60 Wizard Run 0 Options --------- ASCII 0 Keyboard 1 Movement Numpad Keybinds 0 Fullscreen 1 Font 12/Terminus Map View 83x54 Tactical HUD 1 Map Filters NONE Filters LOW_CONTRAST(13,24,33) Steam 1 RUN: 8206de58-eaaf-4980-be34-97202e56ab31